[Event "*** SCC Grand Prix: Titled Tuesday Blitz"]
[Site "Chess.com"]
[Date "2020.07.07"]
[Round "8"]
[White "chito89"]
[Black "Korchmar_Vasiliy"]
[Result "1-0"]
[WhiteElo "2822"]
[BlackElo "2638"]
[TimeControl "180+1"]
[EndTime "11:36:38 PDT"]
[Termination "chito89 won on time"]

1. e4 {[%clk 0:03:00.9]} 1... c5 {[%clk 0:03:00.1]} 2. Nf3 {[%clk 0:02:59.6]}
2... d6 {[%clk 0:03:00.6]} 3. g3 {[%clk 0:02:57.2]} 3... Nc6 {[%clk 0:02:59.9]}
4. Bg2 {[%clk 0:02:57.4]} 4... g6 {[%clk 0:02:58.4]} 5. O-O {[%clk 0:02:57]}
5... Bg7 {[%clk 0:02:59]} 6. c3 {[%clk 0:02:57.6]} 6... e5 {[%clk 0:02:58.9]} 7.
d3 {[%clk 0:02:57]} 7... Nge7 {[%clk 0:02:58.7]} 8. a3 {[%clk 0:02:57.9]} 8...
O-O {[%clk 0:02:57.5]} 9. b4 {[%clk 0:02:57.9]} 9... h6 {[%clk 0:02:53.4]} 10.
Nbd2 {[%clk 0:02:55.7]} 10... Be6 {[%clk 0:02:53.1]} 11. Bb2 {[%clk 0:02:55.4]}
11... b6 {[%clk 0:02:47.7]} 12. Re1 {[%clk 0:02:45.9]} 12... Qd7 {[%clk
0:02:40.3]} 13. b5 {[%clk 0:02:11.4]} 13... Na5 {[%clk 0:02:34.8]} 14. c4 {[%clk
0:02:08.7]} 14... f5 {[%clk 0:02:25.2]} 15. exf5 {[%clk 0:02:05]} 15... Bxf5
{[%clk 0:02:07.3]} 16. Nh4 {[%clk 0:01:44.7]} 16... Bg4 {[%clk 0:02:06.3]} 17.
Qc2 {[%clk 0:01:43.1]} 17... Rad8 {[%clk 0:02:01.7]} 18. Bc3 {[%clk 0:01:32.1]}
18... Rf7 {[%clk 0:01:58.9]} 19. Bxa5 {[%clk 0:01:10.3]} 19... bxa5 {[%clk
0:01:59.8]} 20. Be4 {[%clk 0:00:48.9]} 20... Rdf8 {[%clk 0:01:52.8]} 21. f3
{[%clk 0:00:44.2]} 21... Bf5 {[%clk 0:01:50.8]} 22. Rf1 {[%clk 0:00:39.2]} 22...
g5 {[%clk 0:01:35.2]} 23. Nxf5 {[%clk 0:00:33.6]} 23... Nxf5 {[%clk 0:01:36.1]}
24. Rae1 {[%clk 0:00:29.6]} 24... Nd4 {[%clk 0:01:23]} 25. Qd1 {[%clk
0:00:29.8]} 25... Kh8 {[%clk 0:01:15.9]} 26. Nb3 {[%clk 0:00:29.8]} 26... Nxb3
{[%clk 0:00:55]} 27. Qxb3 {[%clk 0:00:30.7]} 27... Qh3 {[%clk 0:00:55.5]} 28.
Qd1 {[%clk 0:00:22.4]} 28... h5 {[%clk 0:00:44.1]} 29. Qe2 {[%clk 0:00:16.8]}
29... g4 {[%clk 0:00:33]} 30. fxg4 {[%clk 0:00:06.8]} 30... hxg4 {[%clk
0:00:23.5]} 31. Rxf7 {[%clk 0:00:06.3]} 31... Rxf7 {[%clk 0:00:24.4]} 32. Rf1
{[%clk 0:00:06.9]} 32... Rxf1+ {[%clk 0:00:19.4]} 33. Qxf1 {[%clk 0:00:07.8]}
33... Qh6 {[%clk 0:00:15.7]} 34. Bf5 {[%clk 0:00:03.8]} 34... Qe3+ {[%clk
0:00:15.5]} 35. Kg2 {[%clk 0:00:03.5]} 35... Bh6 {[%clk 0:00:03]} 36. Bxg4
{[%clk 0:00:03.3]} 36... Qd2+ {[%clk 0:00:03.3]} 37. Kh3 {[%clk 0:00:03.5]}
37... Kg7 {[%clk 0:00:02.5]} 38. Qf5 {[%clk 0:00:03.3]} 38... Qe1 {[%clk
0:00:01.9]} 39. Bh5 {[%clk 0:00:02.7]} 1-0

[Event "*** SCC Grand Prix: Titled Tuesday Blitz"]
[Site "Chess.com"]
[Date "2020.07.07"]
[Round "8"]
[White "hongnhung1234"]
[Black "bazar-wokzal"]
[Result "0-1"]
[WhiteElo "2204"]
[BlackElo "2387"]
[TimeControl "180+1"]
[EndTime "11:36:38 PDT"]
[Termination "bazar-wokzal won by checkmate"]

1. e4 {[%clk 0:03:00.9]} 1... c5 {[%clk 0:02:58.5]} 2. Nc3 {[%clk 0:03:00.1]}
2... g6 {[%clk 0:02:58.2]} 3. f4 {[%clk 0:03:00.3]} 3... Bg7 {[%clk 0:02:57.1]}
4. Nf3 {[%clk 0:03:00.7]} 4... Nc6 {[%clk 0:02:56.6]} 5. Bc4 {[%clk 0:03:01.1]}
5... d6 {[%clk 0:02:56.3]} 6. O-O {[%clk 0:03:00.8]} 6... a6 {[%clk 0:02:41]} 7.
a4 {[%clk 0:02:59]} 7... Nf6 {[%clk 0:02:19.8]} 8. d3 {[%clk 0:02:56.9]} 8...
O-O {[%clk 0:02:18.8]} 9. Qe1 {[%clk 0:02:56.3]} 9... Nd4 {[%clk 0:02:02.4]} 10.
Nxd4 {[%clk 0:02:55.7]} 10... cxd4 {[%clk 0:02:02.2]} 11. Nd5 {[%clk 0:02:50.4]}
11... Nd7 {[%clk 0:01:37.8]} 12. Qh4 {[%clk 0:02:40.8]} 12... e6 {[%clk
0:01:28.7]} 13. Qxd8 {[%clk 0:02:26.5]} 13... Rxd8 {[%clk 0:01:28.2]} 14. Ne7+
{[%clk 0:02:26.3]} 14... Kf8 {[%clk 0:01:28]} 15. Nxc8 {[%clk 0:02:25.7]} 15...
Raxc8 {[%clk 0:01:28.4]} 16. b4 {[%clk 0:02:11]} 16... Ke7 {[%clk 0:01:23.3]}
17. f5 {[%clk 0:02:00.5]} 17... gxf5 {[%clk 0:00:52.7]} 18. exf5 {[%clk
0:01:58.4]} 18... Bf6 {[%clk 0:00:52.5]} 19. fxe6 {[%clk 0:01:55.1]} 19... fxe6
{[%clk 0:00:52.3]} 20. g3 {[%clk 0:01:46.8]} 20... Ne5 {[%clk 0:00:51.6]} 21.
Bb3 {[%clk 0:01:46.7]} 21... h5 {[%clk 0:00:47.6]} 22. Bf4 {[%clk 0:01:39.1]}
22... h4 {[%clk 0:00:44.4]} 23. Rae1 {[%clk 0:01:30.5]} 23... Rh8 {[%clk
0:00:39]} 24. g4 {[%clk 0:01:24.3]} 24... h3 {[%clk 0:00:33.5]} 25. g5 {[%clk
0:01:14.8]} 25... Rhg8 {[%clk 0:00:25.7]} 26. Kh1 {[%clk 0:01:03.8]} 26... Bxg5
{[%clk 0:00:24.4]} 27. Bxe5 {[%clk 0:01:00.6]} 27... dxe5 {[%clk 0:00:23.8]} 28.
Rxe5 {[%clk 0:01:01.5]} 28... Rg6 {[%clk 0:00:20.4]} 29. Bxe6 {[%clk 0:00:41.2]}
29... Rxe6 {[%clk 0:00:18.3]} 30. Rxg5 {[%clk 0:00:41.4]} 30... Rxc2 {[%clk
0:00:18.4]} 31. Rg3 {[%clk 0:00:37.9]} 31... Re3 {[%clk 0:00:16.8]} 32. Rxe3+
{[%clk 0:00:35.4]} 32... dxe3 {[%clk 0:00:17.2]} 33. Re1 {[%clk 0:00:36]} 33...
Kd6 {[%clk 0:00:17.5]} 34. Kg1 {[%clk 0:00:35.5]} 34... Rg2+ {[%clk 0:00:17.1]}
35. Kf1 {[%clk 0:00:34.4]} 35... Rxh2 {[%clk 0:00:16.4]} 36. Rxe3 {[%clk
0:00:34.8]} 36... Kd5 {[%clk 0:00:15.8]} 37. Rg3 {[%clk 0:00:30.1]} 37... b5
{[%clk 0:00:15.6]} 38. axb5 {[%clk 0:00:28.5]} 38... axb5 {[%clk 0:00:16.2]} 39.
Kg1 {[%clk 0:00:28.6]} 39... Rg2+ {[%clk 0:00:15.6]} 40. Rxg2 {[%clk 0:00:28.2]}
40... hxg2 {[%clk 0:00:16.5]} 41. Kxg2 {[%clk 0:00:29.1]} 41... Kd4 {[%clk
0:00:17.4]} 42. Kf2 {[%clk 0:00:27.6]} 42... Kxd3 {[%clk 0:00:18.3]} 43. Ke1
{[%clk 0:00:27.9]} 43... Kc3 {[%clk 0:00:19]} 44. Kd1 {[%clk 0:00:28]} 44...
Kxb4 {[%clk 0:00:19.3]} 45. Kd2 {[%clk 0:00:25.4]} 45... Ka3 {[%clk 0:00:19.5]}
46. Kc1 {[%clk 0:00:24.5]} 46... Ka2 {[%clk 0:00:19.2]} 47. Kc2 {[%clk
0:00:24.6]} 47... b4 {[%clk 0:00:19.7]} 48. Kd3 {[%clk 0:00:24.1]} 48... b3
{[%clk 0:00:20.6]} 49. Kc4 {[%clk 0:00:24.8]} 49... b2 {[%clk 0:00:21.5]} 50.
Kb4 {[%clk 0:00:25]} 50... b1=Q+ {[%clk 0:00:22.4]} 51. Ka4 {[%clk 0:00:25.6]}
51... Qe4+ {[%clk 0:00:23]} 52. Ka5 {[%clk 0:00:25.7]} 52... Kb3 {[%clk
0:00:23.4]} 53. Ka6 {[%clk 0:00:26.1]} 53... Kb4 {[%clk 0:00:23.9]} 54. Ka7
{[%clk 0:00:26.2]} 54... Qe6 {[%clk 0:00:24]} 55. Kb8 {[%clk 0:00:26.6]} 55...
Kc5 {[%clk 0:00:24.7]} 56. Ka7 {[%clk 0:00:26.7]} 56... Qe7+ {[%clk 0:00:25.2]}
57. Ka8 {[%clk 0:00:27.3]} 57... Kb6 {[%clk 0:00:24.9]} 58. Kb8 {[%clk
0:00:27.7]} 58... Qe8# {[%clk 0:00:25.2]} 0-1

[Event "*** SCC Grand Prix: Titled Tuesday Blitz"]
[Site "Chess.com"]
[Date "2020.07.07"]
[Round "8"]
[White "Cxrjs"]
[Black "aljado"]
[Result "1-0"]
[WhiteElo "2290"]
[BlackElo "2118"]
[TimeControl "180+1"]
[EndTime "11:36:38 PDT"]
[Termination "Cxrjs won by checkmate"]

1. e4 {[%clk 0:03:00.9]} 1... c5 {[%clk 0:02:59]} 2. Nf3 {[%clk 0:03:00.7]} 2...
e6 {[%clk 0:02:58.2]} 3. d4 {[%clk 0:03:00.8]} 3... cxd4 {[%clk 0:02:57.1]} 4.
Nxd4 {[%clk 0:03:01.7]} 4... a6 {[%clk 0:02:57]} 5. c4 {[%clk 0:03:01.3]} 5...
Qc7 {[%clk 0:02:56.5]} 6. Nc3 {[%clk 0:03:00.1]} 6... Nf6 {[%clk 0:02:56.4]} 7.
Be2 {[%clk 0:03:00.2]} 7... Nxe4 {[%clk 0:02:40.8]} 8. Nxe4 {[%clk 0:02:57.9]}
8... Qe5 {[%clk 0:02:41.1]} 9. Qd3 {[%clk 0:02:34.8]} 9... d5 {[%clk 0:02:31.1]}
10. cxd5 {[%clk 0:02:31.2]} 10... exd5 {[%clk 0:02:30.5]} 11. Nc3 {[%clk
0:02:27.5]} 11... Nc6 {[%clk 0:02:27]} 12. Nxc6 {[%clk 0:02:23.5]} 12... bxc6
{[%clk 0:02:26.5]} 13. O-O {[%clk 0:02:13.8]} 13... Bd6 {[%clk 0:02:20.9]} 14.
f4 {[%clk 0:01:56.4]} 14... Qf6 {[%clk 0:02:19.6]} 15. Be3 {[%clk 0:01:49.4]}
15... O-O {[%clk 0:02:17.6]} 16. Bd4 {[%clk 0:01:43.9]} 16... Qh6 {[%clk
0:02:12.2]} 17. Qg3 {[%clk 0:01:22.3]} 17... c5 {[%clk 0:02:06.9]} 18. Be5
{[%clk 0:01:19.4]} 18... Be7 {[%clk 0:02:02.1]} 19. Nxd5 {[%clk 0:01:14.1]}
19... Bh4 {[%clk 0:02:01.3]} 20. Qc3 {[%clk 0:00:54.7]} 20... Bb7 {[%clk
0:01:52.3]} 21. Bc4 {[%clk 0:00:50.9]} 21... Rad8 {[%clk 0:01:48.3]} 22. Rad1
{[%clk 0:00:46.5]} 22... Kh8 {[%clk 0:01:36.1]} 23. g3 {[%clk 0:00:34.4]} 23...
Qg6 {[%clk 0:01:22.7]} 24. Kf2 {[%clk 0:00:20.5]} 24... f6 {[%clk 0:01:11.8]}
25. Bc7 {[%clk 0:00:17.7]} 25... Rde8 {[%clk 0:01:05.5]} 26. gxh4 {[%clk
0:00:15.6]} 26... Qg4 {[%clk 0:00:55.9]} 27. Qg3 {[%clk 0:00:12.2]} 27... Qf5
{[%clk 0:00:37.4]} 28. Rg1 {[%clk 0:00:11.7]} 28... Qc2+ {[%clk 0:00:30.7]} 29.
Kf3 {[%clk 0:00:10.6]} 29... Bxd5+ {[%clk 0:00:25]} 30. Rxd5 {[%clk 0:00:07.4]}
30... Qe4+ {[%clk 0:00:20.7]} 31. Kf2 {[%clk 0:00:05.2]} 31... Qc2+ {[%clk
0:00:18.9]} 32. Kf3 {[%clk 0:00:02.9]} 32... Qe4+ {[%clk 0:00:17.7]} 33. Kg4
{[%clk 0:00:02.7]} 33... Qxc4 {[%clk 0:00:13.1]} 34. Kh3 {[%clk 0:00:02.6]}
34... g6 {[%clk 0:00:10.4]} 35. Rd7 {[%clk 0:00:02.7]} 35... Qe6+ {[%clk
0:00:07.9]} 36. Qg4 {[%clk 0:00:03.1]} 36... Qe3+ {[%clk 0:00:06.5]} 37. Rg3
{[%clk 0:00:02.6]} 37... f5 {[%clk 0:00:04.9]} 38. Rxh7+ {[%clk 0:00:02.8]}
38... Kxh7 {[%clk 0:00:02.6]} 39. Qxg6+ {[%clk 0:00:03.3]} 39... Kh8 {[%clk
0:00:02.3]} 40. Qg7# {[%clk 0:00:03.9]} 1-0

[Event "*** SCC Grand Prix: Titled Tuesday Blitz"]
[Site "Chess.com"]
[Date "2020.07.07"]
[Round "8"]
[White "antoszu"]
[Black "ZiggyStardust64"]
[Result "0-1"]
[WhiteElo "2541"]
[BlackElo "2676"]
[TimeControl "180+1"]
[EndTime "11:36:39 PDT"]
[Termination "ZiggyStardust64 won by resignation"]

1. d4 {[%clk 0:03:00.9]} 1... d5 {[%clk 0:02:58.5]} 2. c4 {[%clk 0:03:01]} 2...
e6 {[%clk 0:02:57.7]} 3. Nc3 {[%clk 0:03:00.9]} 3... Nf6 {[%clk 0:02:56.7]} 4.
cxd5 {[%clk 0:02:57.7]} 4... exd5 {[%clk 0:02:57.6]} 5. Bg5 {[%clk 0:02:58.3]}
5... Bb4 {[%clk 0:02:56.9]} 6. e3 {[%clk 0:02:52.2]} 6... h6 {[%clk 0:02:55.7]}
7. Bh4 {[%clk 0:02:51.6]} 7... g5 {[%clk 0:02:55.6]} 8. Bg3 {[%clk 0:02:52]}
8... Ne4 {[%clk 0:02:56.2]} 9. Qa4+ {[%clk 0:02:43.4]} 9... Nc6 {[%clk
0:02:54.3]} 10. Rc1 {[%clk 0:02:43.6]} 10... Bd7 {[%clk 0:02:41.9]} 11. Qc2
{[%clk 0:02:42.6]} 11... h5 {[%clk 0:02:40.1]} 12. f3 {[%clk 0:02:06.2]} 12...
Nxg3 {[%clk 0:02:40]} 13. hxg3 {[%clk 0:02:07.1]} 13... Bd6 {[%clk 0:02:40.3]}
14. Nge2 {[%clk 0:02:03]} 14... Ne7 {[%clk 0:02:40.5]} 15. e4 {[%clk 0:01:48.1]}
15... dxe4 {[%clk 0:02:27.8]} 16. Nxe4 {[%clk 0:01:49]} 16... Nf5 {[%clk
0:02:25]} 17. Nxd6+ {[%clk 0:01:47.6]} 17... cxd6 {[%clk 0:02:25.9]} 18. g4
{[%clk 0:01:38.9]} 18... Nh4 {[%clk 0:02:06.2]} 19. Qe4+ {[%clk 0:01:13.1]}
19... Qe7 {[%clk 0:02:04.3]} 20. Qxe7+ {[%clk 0:01:13.1]} 20... Kxe7 {[%clk
0:02:05.2]} 21. gxh5 {[%clk 0:01:14]} 21... Rxh5 {[%clk 0:02:05]} 22. Kf2 {[%clk
0:01:14.4]} 22... Rhh8 {[%clk 0:02:03.4]} 23. g3 {[%clk 0:01:06.5]} 23... Nf5
{[%clk 0:02:03.1]} 24. Rxh8 {[%clk 0:01:07.4]} 24... Rxh8 {[%clk 0:02:02.8]} 25.
Bg2 {[%clk 0:01:07.9]} 25... a5 {[%clk 0:01:43.5]} 26. d5 {[%clk 0:00:48.8]}
26... Kd8 {[%clk 0:01:32.9]} 27. f4 {[%clk 0:00:47.7]} 27... f6 {[%clk
0:01:29.7]} 28. a3 {[%clk 0:00:20.5]} 28... Re8 {[%clk 0:01:29.4]} 29. Nc3
{[%clk 0:00:16.4]} 29... Rg8 {[%clk 0:01:06.5]} 30. Ne4 {[%clk 0:00:14.3]} 30...
gxf4 {[%clk 0:00:55.6]} 31. gxf4 {[%clk 0:00:15.2]} 31... Rg4 {[%clk 0:00:55.9]}
32. Nxf6 {[%clk 0:00:11.8]} 32... Rxf4+ {[%clk 0:00:56.4]} 33. Kg1 {[%clk
0:00:11.4]} 33... Nd4 {[%clk 0:00:47.1]} 34. Nxd7 {[%clk 0:00:11.3]} 34... Ne2+
{[%clk 0:00:47.3]} 35. Kh2 {[%clk 0:00:08.5]} 35... Nxc1 {[%clk 0:00:45.8]} 36.
Nb6 {[%clk 0:00:07.6]} 36... Nd3 {[%clk 0:00:43.6]} 37. b3 {[%clk 0:00:06.3]}
37... Rf2 {[%clk 0:00:43.6]} 38. Kg3 {[%clk 0:00:05.9]} 38... Rb2 {[%clk
0:00:43.7]} 39. Nc4 {[%clk 0:00:03.9]} 39... Rxb3 {[%clk 0:00:38.5]} 40. Nxa5
{[%clk 0:00:04.1]} 40... Rc3 {[%clk 0:00:31.2]} 41. Kg4 {[%clk 0:00:02.7]} 41...
Kc7 {[%clk 0:00:27.9]} 42. Kf5 {[%clk 0:00:02.7]} 42... Ne1 {[%clk 0:00:25.5]}
43. Be4 {[%clk 0:00:03]} 43... Nc2 {[%clk 0:00:22.9]} 44. a4 {[%clk 0:00:03.1]}
44... Nd4+ {[%clk 0:00:22.5]} 45. Kf4 {[%clk 0:00:03.8]} 45... Nb3 {[%clk
0:00:20.1]} 46. Nxb3 {[%clk 0:00:03.5]} 46... Rxb3 {[%clk 0:00:21]} 47. a5
{[%clk 0:00:03.5]} 47... Ra3 {[%clk 0:00:20.9]} 0-1

[Event "*** SCC Grand Prix: Titled Tuesday Blitz"]
[Site "Chess.com"]
[Date "2020.07.07"]
[Round "8"]
[White "ega2006"]
[Black "blitzking1729"]
[Result "0-1"]
[WhiteElo "2352"]
[BlackElo "2542"]
[TimeControl "180+1"]
[EndTime "11:36:40 PDT"]
[Termination "blitzking1729 won by resignation"]

1. e4 {[%clk 0:03:00.9]} 1... e6 {[%clk 0:03:00.1]} 2. d4 {[%clk 0:03:00.7]}
2... d5 {[%clk 0:03:00.1]} 3. Nd2 {[%clk 0:03:01.2]} 3... Nf6 {[%clk 0:02:59.4]}
4. e5 {[%clk 0:03:01.3]} 4... Nfd7 {[%clk 0:02:59.6]} 5. f4 {[%clk 0:03:02.2]}
5... c5 {[%clk 0:03:00]} 6. c3 {[%clk 0:03:02.4]} 6... Nc6 {[%clk 0:03:00.4]} 7.
Ndf3 {[%clk 0:03:02.9]} 7... Be7 {[%clk 0:02:50.2]} 8. Bd3 {[%clk 0:02:57.9]}
8... O-O {[%clk 0:02:42.3]} 9. Ne2 {[%clk 0:02:48.9]} 9... f5 {[%clk 0:02:40.3]}
10. O-O {[%clk 0:02:45.6]} 10... cxd4 {[%clk 0:02:36.1]} 11. cxd4 {[%clk
0:02:45.2]} 11... b6 {[%clk 0:02:34.7]} 12. Ng5 {[%clk 0:02:39.7]} 12... Ndb8
{[%clk 0:02:26.4]} 13. Be3 {[%clk 0:02:26]} 13... h6 {[%clk 0:02:25.2]} 14. Nf3
{[%clk 0:02:24.8]} 14... Ba6 {[%clk 0:02:25]} 15. Rc1 {[%clk 0:02:23.2]} 15...
Bxd3 {[%clk 0:02:23.2]} 16. Qxd3 {[%clk 0:02:24.1]} 16... Na5 {[%clk 0:02:15.6]}
17. b3 {[%clk 0:02:22.8]} 17... Nbc6 {[%clk 0:02:13.1]} 18. h3 {[%clk
0:01:53.7]} 18... Qd7 {[%clk 0:02:11.1]} 19. Qd2 {[%clk 0:01:48.5]} 19... Rac8
{[%clk 0:02:08.4]} 20. Ne1 {[%clk 0:01:42]} 20... Ba3 {[%clk 0:02:04.7]} 21. Rc2
{[%clk 0:01:38.9]} 21... Nb4 {[%clk 0:02:01.4]} 22. Rxc8 {[%clk 0:01:29.3]}
22... Rxc8 {[%clk 0:01:58.4]} 23. g4 {[%clk 0:01:28.8]} 23... fxg4 {[%clk
0:01:56.1]} 24. hxg4 {[%clk 0:01:29.7]} 24... Qf7 {[%clk 0:01:36.4]} 25. f5
{[%clk 0:01:14.6]} 25... exf5 {[%clk 0:01:28.3]} 26. gxf5 {[%clk 0:01:15.5]}
26... Qh5 {[%clk 0:01:27.8]} 27. Ng3 {[%clk 0:01:12.1]} 27... Qg4 {[%clk
0:01:22.5]} 28. Qg2 {[%clk 0:01:11.8]} 28... Rc3 {[%clk 0:01:13.1]} 29. Rf4
{[%clk 0:01:07.3]} 29... Qd1 {[%clk 0:00:54.2]} 30. Bf2 {[%clk 0:01:07.1]} 30...
Bc1 {[%clk 0:00:52.7]} 31. Rh4 {[%clk 0:00:59.6]} 31... Be3 {[%clk 0:00:47]} 32.
f6 {[%clk 0:00:34.5]} 32... Qxe1+ {[%clk 0:00:45.1]} 33. Kh2 {[%clk 0:00:31.7]}
33... Qxf2 {[%clk 0:00:44.6]} 34. Rg4 {[%clk 0:00:26.4]} 34... Qxg2+ {[%clk
0:00:43.9]} 35. Kxg2 {[%clk 0:00:27.3]} 35... Bg5 {[%clk 0:00:42.1]} 36. Nf5
{[%clk 0:00:22.9]} 36... gxf6 {[%clk 0:00:41.3]} 37. e6 {[%clk 0:00:22.2]} 37...
h5 {[%clk 0:00:37.8]} 38. e7 {[%clk 0:00:14.2]} 38... Kf7 {[%clk 0:00:34.5]} 39.
Ng7 {[%clk 0:00:08.2]} 39... Rc2+ {[%clk 0:00:27.9]} 40. Kf1 {[%clk 0:00:07.3]}
40... Rc1+ {[%clk 0:00:26.1]} 41. Kg2 {[%clk 0:00:07]} 41... Rc8 {[%clk
0:00:25.3]} 42. e8=Q+ {[%clk 0:00:04.8]} 42... Rxe8 {[%clk 0:00:24.8]} 43. Nxe8
{[%clk 0:00:05.7]} 43... hxg4 {[%clk 0:00:24.3]} 44. Nd6+ {[%clk 0:00:04.7]}
44... Ke6 {[%clk 0:00:24.4]} 0-1

[Event "*** SCC Grand Prix: Titled Tuesday Blitz"]
[Site "Chess.com"]
[Date "2020.07.07"]
[Round "8"]
[White "Oleksandr_Bortnyk"]
[Black "rpragchess"]
[Result "1-0"]
[WhiteElo "2935"]
[BlackElo "2820"]
[TimeControl "180+1"]
[EndTime "11:36:41 PDT"]
[Termination "Oleksandr_Bortnyk won by checkmate"]

1. e4 {[%clk 0:03:00.9]} 1... c5 {[%clk 0:02:55.6]} 2. c3 {[%clk 0:03:00.7]}
2... Nf6 {[%clk 0:02:54.9]} 3. e5 {[%clk 0:03:01]} 3... Nd5 {[%clk 0:02:55.1]}
4. d4 {[%clk 0:03:01.9]} 4... cxd4 {[%clk 0:02:55.3]} 5. Nf3 {[%clk 0:03:02.8]}
5... d6 {[%clk 0:02:54.8]} 6. cxd4 {[%clk 0:03:03.7]} 6... e6 {[%clk 0:02:54.8]}
7. Bc4 {[%clk 0:03:03.7]} 7... dxe5 {[%clk 0:02:54.9]} 8. Nxe5 {[%clk
0:03:01.8]} 8... Bb4+ {[%clk 0:02:53.8]} 9. Bd2 {[%clk 0:02:58.7]} 9... Bxd2+
{[%clk 0:02:46.9]} 10. Nxd2 {[%clk 0:02:59.6]} 10... O-O {[%clk 0:02:42.4]} 11.
O-O {[%clk 0:02:59.1]} 11... Nc6 {[%clk 0:02:42.5]} 12. Ndf3 {[%clk 0:02:54]}
12... Nce7 {[%clk 0:02:39.4]} 13. Re1 {[%clk 0:02:51.5]} 13... Bd7 {[%clk
0:02:38.5]} 14. Rc1 {[%clk 0:02:31.6]} 14... h6 {[%clk 0:02:35.6]} 15. a3 {[%clk
0:02:17.2]} 15... Bc6 {[%clk 0:02:34.3]} 16. Qd2 {[%clk 0:02:08.9]} 16... Nf6
{[%clk 0:02:18.8]} 17. b4 {[%clk 0:01:53.1]} 17... Bd5 {[%clk 0:02:10.6]} 18.
Bd3 {[%clk 0:01:50.6]} 18... a6 {[%clk 0:02:04]} 19. Qf4 {[%clk 0:01:49.9]}
19... Qd6 {[%clk 0:01:46.6]} 20. Nd2 {[%clk 0:01:25.9]} 20... Rfd8 {[%clk
0:01:27.9]} 21. Re3 {[%clk 0:01:05.7]} 21... Bc6 {[%clk 0:00:50]} 22. Rg3 {[%clk
0:00:58.8]} 22... Kf8 {[%clk 0:00:49.8]} 23. Nb3 {[%clk 0:00:43.1]} 23... Qd5
{[%clk 0:00:42.4]} 24. Bb1 {[%clk 0:00:20.5]} 24... Rac8 {[%clk 0:00:26.8]} 25.
Re1 {[%clk 0:00:20.3]} 25... b6 {[%clk 0:00:22.5]} 26. Ba2 {[%clk 0:00:10.7]}
26... Qd6 {[%clk 0:00:20]} 27. h3 {[%clk 0:00:05.9]} 27... Bd5 {[%clk 0:00:20]}
28. Rd3 {[%clk 0:00:05.6]} 28... a5 {[%clk 0:00:18.7]} 29. bxa5 {[%clk
0:00:04.2]} 29... bxa5 {[%clk 0:00:19.6]} 30. Re2 {[%clk 0:00:02.9]} 30... a4
{[%clk 0:00:11.8]} 31. Nc5 {[%clk 0:00:03.2]} 31... Bxa2 {[%clk 0:00:11.9]} 32.
Rxa2 {[%clk 0:00:04.1]} 32... Qd5 {[%clk 0:00:08]} 33. Rad2 {[%clk 0:00:02.4]}
33... Nc6 {[%clk 0:00:07.2]} 34. g4 {[%clk 0:00:02.4]} 34... Ke7 {[%clk
0:00:03.7]} 35. g5 {[%clk 0:00:02.3]} 35... hxg5 {[%clk 0:00:03.6]} 36. Qxg5
{[%clk 0:00:03.2]} 36... Rg8 {[%clk 0:00:04]} 37. Qf4 {[%clk 0:00:02.9]} 37...
Nxe5 {[%clk 0:00:03]} 38. dxe5 {[%clk 0:00:03.8]} 38... Qxc5 {[%clk 0:00:03.5]}
39. exf6+ {[%clk 0:00:03.7]} 39... gxf6+ {[%clk 0:00:04.4]} 40. Kh2 {[%clk
0:00:04.5]} 40... Rc7 {[%clk 0:00:03.5]} 41. Re3 {[%clk 0:00:02.4]} 41... Qg5
{[%clk 0:00:02.4]} 42. Qd6+ {[%clk 0:00:02.3]} 42... Ke8 {[%clk 0:00:02.3]} 43.
Qd8# {[%clk 0:00:03.2]} 1-0

[Event "*** SCC Grand Prix: Titled Tuesday Blitz"]
[Site "Chess.com"]
[Date "2020.07.07"]
[Round "8"]
[White "juniortay"]
[Black "RestartingChess"]
[Result "0-1"]
[WhiteElo "2363"]
[BlackElo "2498"]
[TimeControl "180+1"]
[EndTime "11:36:41 PDT"]
[Termination "RestartingChess won on time"]

1. e4 {[%clk 0:03:00]} 1... Nf6 {[%clk 0:03:00]} 2. e5 {[%clk 0:02:59.2]} 2...
Nd5 {[%clk 0:03:00.7]} 3. d4 {[%clk 0:02:59.5]} 3... d6 {[%clk 0:03:01]} 4. Nf3
{[%clk 0:02:59.8]} 4... g6 {[%clk 0:03:01.2]} 5. Bc4 {[%clk 0:02:58.5]} 5... Nb6
{[%clk 0:03:01.7]} 6. Bb3 {[%clk 0:02:57.3]} 6... Bg7 {[%clk 0:03:02.4]} 7. Ng5
{[%clk 0:02:57.5]} 7... O-O {[%clk 0:03:01.6]} 8. e6 {[%clk 0:02:57.2]} 8... f6
{[%clk 0:02:54.8]} 9. Nf7 {[%clk 0:02:56.6]} 9... Qe8 {[%clk 0:02:55.3]} 10. d5
{[%clk 0:02:50.7]} 10... c6 {[%clk 0:02:54.7]} 11. c4 {[%clk 0:02:50.6]} 11...
cxd5 {[%clk 0:02:53.2]} 12. cxd5 {[%clk 0:02:50.3]} 12... Na6 {[%clk 0:02:52.5]}
13. Be3 {[%clk 0:02:42.5]} 13... Qb5 {[%clk 0:02:33.1]} 14. Nc3 {[%clk
0:02:38.1]} 14... Qb4 {[%clk 0:02:31.9]} 15. h4 {[%clk 0:02:13.6]} 15... Rxf7
{[%clk 0:02:15.3]} 16. exf7+ {[%clk 0:02:12]} 16... Kxf7 {[%clk 0:02:16.2]} 17.
h5 {[%clk 0:02:09.9]} 17... Bg4 {[%clk 0:02:14.2]} 18. f3 {[%clk 0:02:08.6]}
18... Bf5 {[%clk 0:02:01.9]} 19. g4 {[%clk 0:02:06.2]} 19... Bd7 {[%clk
0:02:02.2]} 20. hxg6+ {[%clk 0:02:05.3]} 20... hxg6 {[%clk 0:02:02.4]} 21. a3
{[%clk 0:01:55.8]} 21... Qa5 {[%clk 0:01:59.8]} 22. Qd4 {[%clk 0:01:42]} 22...
Nc5 {[%clk 0:01:51.6]} 23. Bc2 {[%clk 0:01:41]} 23... Nba4 {[%clk 0:00:56.8]}
24. b4 {[%clk 0:01:29.6]} 24... Qa6 {[%clk 0:00:50.1]} 25. bxc5 {[%clk
0:01:25.3]} 25... Nxc5 {[%clk 0:00:50]} 26. Kf2 {[%clk 0:01:10.9]} 26... Rc8
{[%clk 0:00:49]} 27. Rh7 {[%clk 0:01:09]} 27... Kg8 {[%clk 0:00:45]} 28. Rah1
{[%clk 0:01:06.5]} 28... e5 {[%clk 0:00:44.4]} 29. dxe6 {[%clk 0:00:58.6]} 29...
Nxe6 {[%clk 0:00:44.6]} 30. Bb3 {[%clk 0:00:47.5]} 30... Qxa3 {[%clk 0:00:39.8]}
31. Bxe6+ {[%clk 0:00:40.3]} 31... Bxe6 {[%clk 0:00:40]} 32. Nd5 {[%clk
0:00:38.1]} 32... Qa2+ {[%clk 0:00:38.7]} 33. Kg3 {[%clk 0:00:37.8]} 33... Qxd5
{[%clk 0:00:32]} 34. Qf4 {[%clk 0:00:35.2]} 34... g5 {[%clk 0:00:25.6]} 35. Qb4
{[%clk 0:00:25.6]} 35... Qe5+ {[%clk 0:00:24.5]} 36. Bf4 {[%clk 0:00:11.5]}
36... Qxf4+ {[%clk 0:00:23]} 37. Qxf4 {[%clk 0:00:11.4]} 37... gxf4+ {[%clk
0:00:23.9]} 38. Kxf4 {[%clk 0:00:12.1]} 38... Rc4+ {[%clk 0:00:23.4]} 39. Kg3
{[%clk 0:00:10.9]} 39... a5 {[%clk 0:00:22.5]} 40. R7h5 {[%clk 0:00:09.7]} 40...
a4 {[%clk 0:00:21.5]} 41. Rb5 {[%clk 0:00:10.1]} 41... Rc3 {[%clk 0:00:19.3]}
42. Kf4 {[%clk 0:00:08.9]} 42... a3 {[%clk 0:00:16.9]} 43. Rxb7 {[%clk
0:00:08.6]} 43... a2 {[%clk 0:00:17.3]} 44. Re1 {[%clk 0:00:03.5]} 44... f5
{[%clk 0:00:16.1]} 45. gxf5 {[%clk 0:00:02]} 45... Rc4+ {[%clk 0:00:16.7]} 46.
Kg5 {[%clk 0:00:01.5]} 46... Bf7 {[%clk 0:00:14.4]} 0-1